[Event "Late-Titled-Tuesday-Blitz-January-30-2024"]
[Site "Chess.com"]
[Date "2024.01.30"]
[Round "3"]
[White "GoValya"]
[Black "OPQRC"]
[Result "0-1"]
[WhiteElo "2305"]
[BlackElo "2546"]
[TimeControl "180+1"]
[EndTime "14:31:07 PST"]
[Termination "OPQRC won on time"]

1. d4 {[%clk 0:03:00.9]} 1... d5 {[%clk 0:02:45.3]} 2. c4 {[%clk 0:03:00.2]}
2... c6 {[%clk 0:02:45.4]} 3. g3 {[%clk 0:03:00.4]} 3... Nf6 {[%clk 0:02:45.2]}
4. Bg2 {[%clk 0:03:00.9]} 4... e6 {[%clk 0:02:45.2]} 5. Nf3 {[%clk 0:03:01.4]}
5... Bb4+ {[%clk 0:02:45]} 6. Bd2 {[%clk 0:03:00.1]} 6... Be7 {[%clk 0:02:45.9]}
7. O-O {[%clk 0:03:00.1]} 7... O-O {[%clk 0:02:44.3]} 8. cxd5 {[%clk 0:03:00]}
8... cxd5 {[%clk 0:02:42.8]} 9. Nc3 {[%clk 0:03:00.3]} 9... b6 {[%clk 0:02:37]}
10. Rc1 {[%clk 0:02:57.5]} 10... Ba6 {[%clk 0:02:36.4]} 11. Re1 {[%clk
0:02:51.5]} 11... Nbd7 {[%clk 0:02:31.9]} 12. Qa4 {[%clk 0:02:47.1]} 12... Bb7
{[%clk 0:02:20.3]} 13. Bf4 {[%clk 0:02:39.2]} 13... Nh5 {[%clk 0:02:17.6]} 14.
Bd2 {[%clk 0:02:29.4]} 14... a6 {[%clk 0:02:11]} 15. e4 {[%clk 0:02:22.3]} 15...
b5 {[%clk 0:01:58.7]} 16. Qb3 {[%clk 0:02:17.9]} 16... Nb6 {[%clk 0:01:49.6]}
17. Ne5 {[%clk 0:01:58.2]} 17... Nf6 {[%clk 0:01:42.9]} 18. exd5 {[%clk
0:01:43.6]} 18... Nfxd5 {[%clk 0:01:42.6]} 19. Nxd5 {[%clk 0:01:39.7]} 19...
Bxd5 {[%clk 0:01:39.7]} 20. Bxd5 {[%clk 0:01:38.1]} 20... Qxd5 {[%clk
0:01:39.2]} 21. Qe3 {[%clk 0:01:00.2]} 21... Rac8 {[%clk 0:01:27.7]} 22. b3
{[%clk 0:00:58.4]} 22... Bd6 {[%clk 0:01:12.1]} 23. Ba5 {[%clk 0:00:54.8]} 23...
Bxe5 {[%clk 0:00:56.4]} 24. dxe5 {[%clk 0:00:54.7]} 24... Nd7 {[%clk 0:00:44]}
25. Rcd1 {[%clk 0:00:51.4]} 25... Qb7 {[%clk 0:00:43.3]} 26. Rd6 {[%clk
0:00:48.7]} 26... Nb8 {[%clk 0:00:19.2]} 27. Red1 {[%clk 0:00:46.5]} 27... Nc6
{[%clk 0:00:17.4]} 28. Rd7 {[%clk 0:00:46.2]} 28... Qb8 {[%clk 0:00:13]} 29. Bc3
{[%clk 0:00:42.1]} 29... Rfd8 {[%clk 0:00:09.2]} 30. Qf4 {[%clk 0:00:38.4]}
30... Rxd7 {[%clk 0:00:06.7]} 31. Rxd7 {[%clk 0:00:39.3]} 31... Rf8 {[%clk
0:00:03.7]} 32. h4 {[%clk 0:00:37.6]} 32... Qc8 {[%clk 0:00:04]} 33. Qd2 {[%clk
0:00:34.7]} 33... Rd8 {[%clk 0:00:02.7]} 34. Rxd8+ {[%clk 0:00:34.2]} 34... Qxd8
{[%clk 0:00:03.6]} 35. Qxd8+ {[%clk 0:00:28.3]} 35... Nxd8 {[%clk 0:00:04.5]}
36. Kg2 {[%clk 0:00:27.8]} 36... Kf8 {[%clk 0:00:04.5]} 37. Kf3 {[%clk
0:00:28.1]} 37... Ke8 {[%clk 0:00:04.8]} 38. Ke4 {[%clk 0:00:28.6]} 38... Kd7
{[%clk 0:00:05]} 39. Kd4 {[%clk 0:00:26.6]} 39... Kc6 {[%clk 0:00:05.1]} 40. f4
{[%clk 0:00:25.2]} 40... Kb6 {[%clk 0:00:03.1]} 41. b4 {[%clk 0:00:21.9]} 41...
Nc6+ {[%clk 0:00:02.4]} 42. Ke4 {[%clk 0:00:21.6]} 42... Kc7 {[%clk 0:00:02.4]}
43. a3 {[%clk 0:00:21.4]} 43... Kd7 {[%clk 0:00:02.7]} 44. g4 {[%clk 0:00:20.2]}
44... Ke7 {[%clk 0:00:03]} 45. f5 {[%clk 0:00:20.3]} 45... Kd7 {[%clk
0:00:02.9]} 46. h5 {[%clk 0:00:18.9]} 46... g6 {[%clk 0:00:02.8]} 47. hxg6
{[%clk 0:00:18.8]} 47... hxg6 {[%clk 0:00:03]} 48. f6 {[%clk 0:00:17.1]} 48...
Nd8 {[%clk 0:00:02.5]} 49. Kf4 {[%clk 0:00:17.2]} 49... Nb7 {[%clk 0:00:02.3]}
50. Kg5 {[%clk 0:00:16.9]} 50... Nd8 {[%clk 0:00:02.3]} 51. Kh6 {[%clk
0:00:16.9]} 51... Nc6 {[%clk 0:00:02.3]} 52. Kg7 {[%clk 0:00:16.7]} 52... Ke8
{[%clk 0:00:02.4]} 53. Kg8 {[%clk 0:00:15.5]} 53... Na7 {[%clk 0:00:02.2]} 54.
Kg7 {[%clk 0:00:15.4]} 54... Nc8 {[%clk 0:00:02.7]} 55. Kg8 {[%clk 0:00:15.4]}
55... Nb6 {[%clk 0:00:03]} 56. Kg7 {[%clk 0:00:13.6]} 56... Nc4 {[%clk
0:00:03.1]} 57. Kh6 {[%clk 0:00:09.6]} 57... Nxa3 {[%clk 0:00:03.3]} 58. Kg5
{[%clk 0:00:09.3]} 58... Nb1 {[%clk 0:00:03.6]} 59. Be1 {[%clk 0:00:08.8]} 59...
Na3 {[%clk 0:00:03.9]} 60. Kf4 {[%clk 0:00:08.4]} 60... Nc4 {[%clk 0:00:03.5]}
61. Ke4 {[%clk 0:00:08]} 61... Kd7 {[%clk 0:00:04.1]} 62. Kd4 {[%clk 0:00:08.2]}
62... Kc6 {[%clk 0:00:04.6]} 63. Bc3 {[%clk 0:00:07.1]} 63... Kb6 {[%clk
0:00:04.6]} 64. Be1 {[%clk 0:00:06.6]} 64... a5 {[%clk 0:00:04.8]} 65. bxa5+
{[%clk 0:00:06.7]} 65... Nxa5 {[%clk 0:00:05.7]} 66. Kc3 {[%clk 0:00:06.8]}
66... Nc6 {[%clk 0:00:05.2]} 67. Bf2+ {[%clk 0:00:07]} 67... Kc7 {[%clk
0:00:05.4]} 68. Be3 {[%clk 0:00:06.3]} 68... Nxe5 {[%clk 0:00:04.3]} 69. g5
{[%clk 0:00:06.1]} 69... Kc6 {[%clk 0:00:04]} 70. Kd4 {[%clk 0:00:05.5]} 70...
Nd7 {[%clk 0:00:03.5]} 71. Kc3 {[%clk 0:00:04.9]} 71... Kd5 {[%clk 0:00:03.7]}
72. Kb4 {[%clk 0:00:04.9]} 72... Ke4 {[%clk 0:00:04.6]} 73. Ba7 {[%clk
0:00:04.2]} 73... Ne5 {[%clk 0:00:03.3]} 74. Kxb5 {[%clk 0:00:04.2]} 74... Nf3
{[%clk 0:00:04.2]} 75. Kc6 {[%clk 0:00:04.2]} 75... Nxg5 {[%clk 0:00:04.2]} 76.
Kd6 {[%clk 0:00:04.7]} 76... Kf5 {[%clk 0:00:04.5]} 77. Ke7 {[%clk 0:00:04.7]}
77... e5 {[%clk 0:00:04.8]} 78. Bb8 {[%clk 0:00:03.9]} 78... e4 {[%clk
0:00:04.8]} 79. Ba7 {[%clk 0:00:03.7]} 79... Kf4 {[%clk 0:00:04.8]} 80. Bb8+
{[%clk 0:00:03.4]} 80... Kf3 {[%clk 0:00:05]} 81. Ba7 {[%clk 0:00:03.3]} 81...
e3 {[%clk 0:00:05.4]} 82. Bc5 {[%clk 0:00:03]} 82... e2 {[%clk 0:00:05.7]} 83.
Bb4 {[%clk 0:00:03.9]} 83... Kf2 {[%clk 0:00:05.9]} 84. Bc5+ {[%clk 0:00:04.1]}
84... Kf1 {[%clk 0:00:05.9]} 85. Bb4 {[%clk 0:00:04.5]} 85... Kf2 {[%clk
0:00:06.4]} 86. Bc5+ {[%clk 0:00:03.5]} 86... Kf1 {[%clk 0:00:06.7]} 87. Bb4
{[%clk 0:00:03.9]} 87... e1=Q+ {[%clk 0:00:07.6]} 88. Bxe1 {[%clk 0:00:04]}
88... Kxe1 {[%clk 0:00:08.5]} 89. Kd6 {[%clk 0:00:04.1]} 89... Kf2 {[%clk
0:00:08.6]} 90. Ke5 {[%clk 0:00:04.5]} 90... Kg3 {[%clk 0:00:08.7]} 0-1

[Event "Late-Titled-Tuesday-Blitz-January-30-2024"]
[Site "Chess.com"]
[Date "2024.01.30"]
[Round "4"]
[White "Horokoskii"]
[Black "wild3000"]
[Result "0-1"]
[WhiteElo "2149"]
[BlackElo "2348"]
[TimeControl "180+1"]
[EndTime "14:33:38 PST"]
[Termination "wild3000 won by resignation"]

1. d4 {[%clk 0:03:00.9]} 1... a5 {[%clk 0:02:55]} 2. c4 {[%clk 0:02:51.7]} 2...
h5 {[%clk 0:02:54.7]} 3. g3 {[%clk 0:02:51]} 3... h4 {[%clk 0:02:54.5]} 4. Bg2
{[%clk 0:02:38.4]} 4... d6 {[%clk 0:02:54.2]} 5. Qb3 {[%clk 0:02:17.3]} 5... a4
{[%clk 0:02:52.1]} 6. Qb4 {[%clk 0:02:09.8]} 6... Nc6 {[%clk 0:02:51.5]} 7. Qc3
{[%clk 0:02:05]} 7... e5 {[%clk 0:02:50.8]} 8. dxe5 {[%clk 0:02:04.5]} 8... dxe5
{[%clk 0:02:50.8]} 9. Nd2 {[%clk 0:01:54.4]} 9... Nf6 {[%clk 0:02:48.2]} 10. Ne4
{[%clk 0:01:52.8]} 10... h3 {[%clk 0:02:46.9]} 11. Nxf6+ {[%clk 0:01:51.6]}
11... Qxf6 {[%clk 0:02:43.7]} 12. Be4 {[%clk 0:01:50.4]} 12... Bd7 {[%clk
0:02:43.3]} 13. Nf3 {[%clk 0:01:50.2]} 13... Bb4 {[%clk 0:02:41.1]} 0-1

[Event "Late-Titled-Tuesday-Blitz-January-30-2024"]
[Site "Chess.com"]
[Date "2024.01.30"]
[Round "4"]
[White "Baby_Legs"]
[Black "NovakRatko"]
[Result "1-0"]
[WhiteElo "2606"]
[BlackElo "2404"]
[TimeControl "180+1"]
[EndTime "14:35:18 PST"]
[Termination "Baby_Legs won by resignation"]

1. c4 {[%clk 0:03:00.9]} 1... c6 {[%clk 0:02:57.4]} 2. d4 {[%clk 0:02:59.5]}
2... d5 {[%clk 0:02:57.7]} 3. Nf3 {[%clk 0:03:00]} 3... f6 {[%clk 0:02:56.4]} 4.
e3 {[%clk 0:02:56.5]} 4... e6 {[%clk 0:02:54.8]} 5. Nc3 {[%clk 0:02:56.3]} 5...
Bd6 {[%clk 0:02:55.1]} 6. e4 {[%clk 0:02:53.6]} 6... dxe4 {[%clk 0:02:53.7]} 7.
Nxe4 {[%clk 0:02:54.5]} 7... Bb4+ {[%clk 0:02:54.2]} 8. Bd2 {[%clk 0:02:54.7]}
8... Bxd2+ {[%clk 0:02:54.3]} 9. Qxd2 {[%clk 0:02:55.6]} 9... Ne7 {[%clk
0:02:53.9]} 10. O-O-O {[%clk 0:02:54.4]} 10... Ng6 {[%clk 0:02:45.4]} 11. h4
{[%clk 0:02:51.6]} 11... f5 {[%clk 0:02:35.9]} 12. Nc3 {[%clk 0:02:48.7]} 12...
O-O {[%clk 0:02:28.4]} 13. h5 {[%clk 0:02:48]} 13... Ne7 {[%clk 0:02:28.7]} 14.
h6 {[%clk 0:02:48.2]} 14... g6 {[%clk 0:02:28.4]} 15. d5 {[%clk 0:02:32.5]}
15... cxd5 {[%clk 0:02:24]} 16. Qd4 {[%clk 0:02:31.1]} 16... Rf7 {[%clk
0:02:24.3]} 17. Ng5 {[%clk 0:02:30.4]} 17... Qf8 {[%clk 0:02:20.6]} 18. cxd5
{[%clk 0:02:22.9]} 18... exd5 {[%clk 0:02:19.4]} 19. Nxd5 {[%clk 0:02:18.3]}
19... Nbc6 {[%clk 0:02:19.1]} 20. Bc4 {[%clk 0:02:03.4]} 20... Nxd4 {[%clk
0:02:12.2]} 21. Nf6+ {[%clk 0:02:03.6]} 21... Kh8 {[%clk 0:02:03.8]} 22. Nxf7+
{[%clk 0:02:04.5]} 22... Qxf7 {[%clk 0:01:59.1]} 23. Bxf7 {[%clk 0:02:05.4]}
23... Nec6 {[%clk 0:01:52.8]} 24. Rhe1 {[%clk 0:02:05]} 24... Bd7 {[%clk
0:01:18.5]} 25. Nxd7 {[%clk 0:02:04.2]} 1-0

[Event "Late-Titled-Tuesday-Blitz-January-30-2024"]
[Site "Chess.com"]
[Date "2024.01.30"]
[Round "4"]
[White "Siemba"]
[Black "ameetghasi100"]
[Result "0-1"]
[WhiteElo "2542"]
[BlackElo "2749"]
[TimeControl "180+1"]
[EndTime "14:35:21 PST"]
[Termination "ameetghasi100 won by resignation"]

1. e4 {[%clk 0:03:00.9]} 1... g6 {[%clk 0:02:59.6]} 2. d4 {[%clk 0:03:01]} 2...
d6 {[%clk 0:03:00.5]} 3. Nc3 {[%clk 0:02:59.6]} 3... Bg7 {[%clk 0:03:00.9]} 4.
h4 {[%clk 0:03:00.2]} 4... h6 {[%clk 0:03:00]} 5. h5 {[%clk 0:03:00.3]} 5... g5
{[%clk 0:03:00]} 6. Be3 {[%clk 0:03:00.6]} 6... a6 {[%clk 0:02:57.8]} 7. f3
{[%clk 0:03:00.8]} 7... Nc6 {[%clk 0:02:57.8]} 8. Nge2 {[%clk 0:03:00.1]} 8...
e6 {[%clk 0:02:58.3]} 9. Qd2 {[%clk 0:03:00.7]} 9... Nge7 {[%clk 0:02:58.7]} 10.
O-O-O {[%clk 0:03:00.4]} 10... b5 {[%clk 0:02:59.2]} 11. Kb1 {[%clk 0:02:50.6]}
11... Rb8 {[%clk 0:02:57.6]} 12. Rc1 {[%clk 0:02:50.8]} 12... Bd7 {[%clk
0:02:46.7]} 13. d5 {[%clk 0:02:46.7]} 13... Ne5 {[%clk 0:02:46.1]} 14. Bd4
{[%clk 0:02:35.9]} 14... c5 {[%clk 0:02:44.8]} 15. dxe6 {[%clk 0:02:13.4]} 15...
Bxe6 {[%clk 0:02:44.5]} 16. Bxe5 {[%clk 0:02:12]} 16... Bxe5 {[%clk 0:02:45.4]}
17. Nd5 {[%clk 0:02:12.4]} 17... Nxd5 {[%clk 0:02:32.3]} 18. exd5 {[%clk
0:02:13.3]} 18... Bd7 {[%clk 0:02:31.8]} 19. Re1 {[%clk 0:02:07.5]} 19... O-O
{[%clk 0:02:30.9]} 20. Nc1 {[%clk 0:01:57.3]} 20... c4 {[%clk 0:02:29]} 21. Ne2
{[%clk 0:01:42.4]} 21... Qf6 {[%clk 0:02:27.5]} 22. Qc1 {[%clk 0:01:37.1]} 22...
b4 {[%clk 0:02:26.3]} 23. f4 {[%clk 0:01:28.4]} 23... gxf4 {[%clk 0:02:26]} 24.
Ng1 {[%clk 0:01:28.9]} 24... b3 {[%clk 0:02:24.1]} 25. axb3 {[%clk 0:01:24.3]}
25... cxb3 {[%clk 0:02:25]} 26. c3 {[%clk 0:01:13.3]} 26... Bf5+ {[%clk
0:02:24.7]} 27. Ka1 {[%clk 0:01:13.9]} 27... Rb5 {[%clk 0:02:24.9]} 0-1

[Event "Late-Titled-Tuesday-Blitz-January-30-2024"]
[Site "Chess.com"]
[Date "2024.01.30"]
[Round "4"]
[White "Siniauski"]
[Black "shimastream"]
[Result "0-1"]
[WhiteElo "2615"]
[BlackElo "3012"]
[TimeControl "180+1"]
[EndTime "14:35:42 PST"]
[Termination "shimastream won by resignation"]

1. e4 {[%clk 0:02:54.2]} 1... c5 {[%clk 0:02:59.8]} 2. Nf3 {[%clk 0:02:53.8]}
2... e6 {[%clk 0:03:00.7]} 3. c4 {[%clk 0:02:53.3]} 3... Nc6 {[%clk 0:02:55.7]}
4. Be2 {[%clk 0:02:52]} 4... g5 {[%clk 0:02:52.2]} 5. h3 {[%clk 0:02:51.7]} 5...
Bg7 {[%clk 0:02:49.6]} 6. d3 {[%clk 0:02:51.8]} 6... h6 {[%clk 0:02:49.4]} 7.
Nc3 {[%clk 0:02:52.2]} 7... d6 {[%clk 0:02:46.3]} 8. Be3 {[%clk 0:02:45.5]} 8...
Nd4 {[%clk 0:02:45.8]} 9. Qd2 {[%clk 0:02:44.6]} 9... Ne7 {[%clk 0:02:44.7]} 10.
O-O {[%clk 0:02:41.2]} 10... Nec6 {[%clk 0:02:44.6]} 11. Nh2 {[%clk 0:02:20]}
11... Bd7 {[%clk 0:02:33.1]} 12. f4 {[%clk 0:02:19]} 12... gxf4 {[%clk
0:02:32.8]} 13. Bxf4 {[%clk 0:02:18.7]} 13... Ne5 {[%clk 0:02:32.1]} 14. Ng4
{[%clk 0:02:12]} 14... Qe7 {[%clk 0:02:29.5]} 15. Rae1 {[%clk 0:01:41.9]} 15...
h5 {[%clk 0:02:26.4]} 16. Nxe5 {[%clk 0:01:40.6]} 16... dxe5 {[%clk 0:02:27.3]}
17. Bh2 {[%clk 0:01:39.9]} 17... O-O-O {[%clk 0:02:26]} 18. a3 {[%clk
0:01:40.3]} 18... Rdg8 {[%clk 0:02:23]} 19. b4 {[%clk 0:01:37.1]} 19... f6
{[%clk 0:02:21.2]} 20. Qd1 {[%clk 0:01:19.2]} 20... cxb4 {[%clk 0:02:11.6]} 21.
axb4 {[%clk 0:00:57.4]} 21... Qxb4 {[%clk 0:02:12.5]} 22. Qa1 {[%clk 0:00:37.7]}
22... Nc2 {[%clk 0:02:12]} 23. Rb1 {[%clk 0:00:38]} 23... Qc5+ {[%clk
0:02:10.2]} 0-1

[Event "Late-Titled-Tuesday-Blitz-January-30-2024"]
[Site "Chess.com"]
[Date "2024.01.30"]
[Round "4"]
[White "HajiyevKanan"]
[Black "elchacal664"]
[Result "0-1"]
[WhiteElo "2565"]
[BlackElo "2413"]
[TimeControl "180+1"]
[EndTime "14:35:49 PST"]
[Termination "elchacal664 won by resignation"]

1. d4 {[%clk 0:02:55.8]} 1... Nf6 {[%clk 0:02:59]} 2. Nf3 {[%clk 0:02:56.7]}
2... d5 {[%clk 0:02:53.7]} 3. c4 {[%clk 0:02:57.6]} 3... e6 {[%clk 0:02:53.6]}
4. cxd5 {[%clk 0:02:58.5]} 4... exd5 {[%clk 0:02:53.5]} 5. Nc3 {[%clk
0:02:59.4]} 5... Be7 {[%clk 0:02:52.6]} 6. Qc2 {[%clk 0:02:59.2]} 6... O-O
{[%clk 0:02:51.9]} 7. Bg5 {[%clk 0:02:59.1]} 7... c5 {[%clk 0:02:52.6]} 8. Bxf6
{[%clk 0:02:58.9]} 8... Bxf6 {[%clk 0:02:52.2]} 9. dxc5 {[%clk 0:02:59]} 9...
Nc6 {[%clk 0:02:52.1]} 10. e3 {[%clk 0:02:58.5]} 10... Bg4 {[%clk 0:02:47.6]}
11. Bd3 {[%clk 0:02:58]} 11... Bxf3 {[%clk 0:02:46.5]} 12. Bxh7+ {[%clk
0:02:56.6]} 12... Kh8 {[%clk 0:02:44.2]} 13. gxf3 {[%clk 0:02:57.5]} 13... d4
{[%clk 0:02:43.5]} 14. O-O-O {[%clk 0:02:55.9]} 14... Qa5 {[%clk 0:02:40.7]} 15.
exd4 {[%clk 0:02:53.5]} 15... Nxd4 {[%clk 0:02:39]} 16. Rxd4 {[%clk 0:02:12.4]}
16... Bxd4 {[%clk 0:02:34.3]} 17. Qf5 {[%clk 0:02:11.2]} 17... Qxc5 {[%clk
0:02:14.8]} 18. Qh3 {[%clk 0:02:11]} 18... Qg5+ {[%clk 0:02:12.3]} 19. Kc2
{[%clk 0:01:59.6]} 19... Qh6 {[%clk 0:02:09.9]} 20. Qxh6 {[%clk 0:01:57.9]}
20... gxh6 {[%clk 0:02:10.8]} 21. Bf5 {[%clk 0:01:57.1]} 21... Bxf2 {[%clk
0:02:06.2]} 22. Ne4 {[%clk 0:01:57.5]} 22... Bb6 {[%clk 0:02:03.8]} 23. h4
{[%clk 0:01:53.4]} 23... Rad8 {[%clk 0:02:02.5]} 24. h5 {[%clk 0:01:52.5]} 24...
Rg8 {[%clk 0:01:57.8]} 25. Bg4 {[%clk 0:01:46.7]} 25... Rd5 {[%clk 0:01:48.4]}
26. b4 {[%clk 0:01:44.4]} 26... f5 {[%clk 0:01:44.9]} 27. Nf6 {[%clk 0:01:44.6]}
27... Rc8+ {[%clk 0:01:34.3]} 28. Kb1 {[%clk 0:01:44.4]} 28... Rd4 {[%clk
0:01:27.9]} 0-1

[Event "Late-Titled-Tuesday-Blitz-January-30-2024"]
[Site "Chess.com"]
[Date "2024.01.30"]
[Round "4"]
[White "Sebastian"]
[Black "Korchmar_Vasiliy"]
[Result "1-0"]
[WhiteElo "2954"]
[BlackElo "2717"]
[TimeControl "180+1"]
[EndTime "14:36:14 PST"]
[Termination "Sebastian won on time"]

1. e4 {[%clk 0:03:00.9]} 1... c5 {[%clk 0:02:59.8]} 2. Nf3 {[%clk 0:03:01.3]}
2... d6 {[%clk 0:03:00.1]} 3. d4 {[%clk 0:03:01.8]} 3... cxd4 {[%clk 0:03:01]}
4. Nxd4 {[%clk 0:03:02.3]} 4... Nf6 {[%clk 0:03:01.4]} 5. Nc3 {[%clk 0:03:02.7]}
5... Nc6 {[%clk 0:03:01.7]} 6. Bg5 {[%clk 0:03:02.3]} 6... Bd7 {[%clk
0:03:01.6]} 7. Qd2 {[%clk 0:03:02.4]} 7... a6 {[%clk 0:03:00.5]} 8. O-O-O {[%clk
0:03:01.8]} 8... e6 {[%clk 0:03:01]} 9. Kb1 {[%clk 0:03:00.4]} 9... Be7 {[%clk
0:02:56.5]} 10. Nxc6 {[%clk 0:03:00.1]} 10... Bxc6 {[%clk 0:02:54.8]} 11. f3
{[%clk 0:03:00.6]} 11... b5 {[%clk 0:02:47.1]} 12. h4 {[%clk 0:02:59.9]} 12...
h6 {[%clk 0:02:25.2]} 13. Be3 {[%clk 0:02:59.2]} 13... Qc7 {[%clk 0:02:18.6]}
14. Ne2 {[%clk 0:02:43.8]} 14... e5 {[%clk 0:02:08.8]} 15. Nc3 {[%clk
0:02:39.8]} 15... Rc8 {[%clk 0:01:42.3]} 16. g4 {[%clk 0:02:37]} 16... b4 {[%clk
0:00:48.8]} 17. Nd5 {[%clk 0:02:36.4]} 17... Nxd5 {[%clk 0:00:48]} 18. exd5
{[%clk 0:02:37]} 18... Bb5 {[%clk 0:00:38.1]} 19. g5 {[%clk 0:02:35.6]} 19...
hxg5 {[%clk 0:00:36]} 20. hxg5 {[%clk 0:02:31.1]} 20... Rxh1 {[%clk 0:00:23.7]}
21. Bxb5+ {[%clk 0:02:31.2]} 21... axb5 {[%clk 0:00:24.4]} 22. Rxh1 {[%clk
0:02:31.4]} 22... Qc4 {[%clk 0:00:22.6]} 23. b3 {[%clk 0:02:27.9]} 23... Qc3
{[%clk 0:00:20.9]} 24. Qe2 {[%clk 0:02:28.4]} 24... Rb8 {[%clk 0:00:09.2]} 25.
f4 {[%clk 0:02:27]} 25... Kd7 {[%clk 0:00:02.6]} 26. Bc1 {[%clk 0:02:17.6]} 1-0

[Event "Late-Titled-Tuesday-Blitz-January-30-2024"]
[Site "Chess.com"]
[Date "2024.01.30"]
[Round "4"]
[White "SnekkerAndersen"]
[Black "esrosenberg"]
[Result "1-0"]
[WhiteElo "2629"]
[BlackElo "2423"]
[TimeControl "180+1"]
[EndTime "14:36:15 PST"]
[Termination "SnekkerAndersen won by resignation"]

1. d4 {[%clk 0:03:00.9]} 1... d5 {[%clk 0:02:59.3]} 2. c4 {[%clk 0:03:00.7]}
2... e6 {[%clk 0:02:59.5]} 3. Nf3 {[%clk 0:02:57.6]} 3... c5 {[%clk 0:02:56]} 4.
cxd5 {[%clk 0:02:54]} 4... exd5 {[%clk 0:02:55.7]} 5. g3 {[%clk 0:02:54.7]} 5...
Nf6 {[%clk 0:02:55]} 6. Bg2 {[%clk 0:02:54.7]} 6... Nc6 {[%clk 0:02:55.2]} 7.
O-O {[%clk 0:02:54.7]} 7... Be7 {[%clk 0:02:55.1]} 8. dxc5 {[%clk 0:02:55]} 8...
Bxc5 {[%clk 0:02:54.9]} 9. b3 {[%clk 0:02:54.6]} 9... Ne4 {[%clk 0:02:50.8]} 10.
Bb2 {[%clk 0:02:54.5]} 10... Be7 {[%clk 0:02:50.9]} 11. Bxg7 {[%clk 0:02:53.4]}
11... Bf6 {[%clk 0:02:51.4]} 12. Bxh8 {[%clk 0:02:44.8]} 12... Bxh8 {[%clk
0:02:49.2]} 13. Nbd2 {[%clk 0:02:45.1]} 13... Bf5 {[%clk 0:02:38.4]} 14. Nxe4
{[%clk 0:02:42.9]} 14... Bxe4 {[%clk 0:02:38.5]} 15. Rc1 {[%clk 0:02:42.8]}
15... Qd7 {[%clk 0:02:35.8]} 16. Ng5 {[%clk 0:02:37.3]} 16... Bxg2 {[%clk
0:02:35.2]} 17. Kxg2 {[%clk 0:02:38.2]} 17... O-O-O {[%clk 0:02:34.5]} 18. b4
{[%clk 0:02:37.9]} 18... Kb8 {[%clk 0:02:34]} 19. b5 {[%clk 0:02:37]} 19... Ne5
{[%clk 0:02:29.1]} 20. Nf3 {[%clk 0:02:36.2]} 20... Nc4 {[%clk 0:02:26]} 21. a4
{[%clk 0:02:36.3]} 21... h5 {[%clk 0:02:15.5]} 22. Qd3 {[%clk 0:02:34.5]} 22...
Ne5 {[%clk 0:01:50.2]} 23. Nxe5 {[%clk 0:02:33]} 23... Bxe5 {[%clk 0:01:51.1]}
24. Rfd1 {[%clk 0:02:22.5]} 24... d4 {[%clk 0:01:24.8]} 25. Rc5 {[%clk
0:02:18.3]} 25... Qe7 {[%clk 0:01:12.9]} 26. Qc4 {[%clk 0:02:06.9]} 26... h4
{[%clk 0:01:08.6]} 27. Rc1 {[%clk 0:02:07.1]} 27... h3+ {[%clk 0:00:50.5]} 28.
Kg1 {[%clk 0:02:07.1]} 1-0

[Event "Late-Titled-Tuesday-Blitz-January-30-2024"]
[Site "Chess.com"]
[Date "2024.01.30"]
[Round "4"]
[White "masnyszachistaaa"]
[Black "Cubitas"]
[Result "1-0"]
[WhiteElo "2555"]
[BlackElo "2720"]
[TimeControl "180+1"]
[EndTime "14:36:23 PST"]
[Termination "masnyszachistaaa won by resignation"]

1. e4 {[%clk 0:03:00.9]} 1... e6 {[%clk 0:02:59.5]} 2. Qe2 {[%clk 0:03:00.4]}
2... c5 {[%clk 0:02:58.9]} 3. Nf3 {[%clk 0:02:58.9]} 3... Nc6 {[%clk 0:02:59.3]}
4. g3 {[%clk 0:02:57.5]} 4... Be7 {[%clk 0:02:59.5]} 5. Bg2 {[%clk 0:02:57.5]}
5... Nf6 {[%clk 0:02:58.8]} 6. O-O {[%clk 0:02:52.7]} 6... d5 {[%clk 0:02:53.7]}
7. exd5 {[%clk 0:02:51.1]} 7... Nxd5 {[%clk 0:02:52.4]} 8. Rd1 {[%clk
0:02:49.4]} 8... Bf6 {[%clk 0:02:49.9]} 9. Nc3 {[%clk 0:02:43.5]} 9... Nxc3
{[%clk 0:02:24.8]} 10. dxc3 {[%clk 0:02:39.6]} 10... Qe7 {[%clk 0:02:25.2]} 11.
Bf4 {[%clk 0:02:37.2]} 11... e5 {[%clk 0:02:20]} 12. Be3 {[%clk 0:02:32.4]}
12... Bd7 {[%clk 0:01:18.9]} 13. Nd2 {[%clk 0:02:29]} 13... O-O {[%clk
0:01:09.3]} 14. Ne4 {[%clk 0:02:25]} 14... b6 {[%clk 0:01:07.9]} 15. Nxf6+
{[%clk 0:01:56.3]} 15... gxf6 {[%clk 0:01:07.3]} 16. Qh5 {[%clk 0:01:29.1]}
16... f5 {[%clk 0:00:47.3]} 17. Rxd7 {[%clk 0:01:23.9]} 17... Qxd7 {[%clk
0:00:44.7]} 18. Qg5+ {[%clk 0:01:16.9]} 1-0